bitfinex-derivatives/quotes_BTCF0:USTF0_20220102
["timestamp","ask_amount","ask_price","bid_price","bid_amount"]
[1641156588496,0.18,47016.0,47013.0,0.14033567]
[1641156589096,2.56607313,47020.0,47013.0,0.14033567]
[1641156590200,1.45007313,47020.0,47013.0,0.14033567]
[1641156590396,1.45007313,47021.0,47013.0,0.49773007]
[1641156590596,0.10620364,47019.0,47013.0,0.67873007]
[1641156590797,0.10620364,47020.0,47013.0,0.67873007]
[1641156591198,0.10620364,47018.0,47013.0,0.67873007]
[1641156591496,0.10620364,47019.0,47013.0,0.67873007]
[1641156591697,0.10620364,47019.0,47014.0,0.3573944]
[1641156591698,1.32919676,47018.0,47014.0,0.3573944]
[1641156592704,1.32919676,47018.0,47014.0,0.5463944]
[1641156593498,0.18,47017.0,47014.0,0.5463944]
[1641156593699,0.18,47017.0,47014.0,0.189]
[1641156594099,1.32919676,47019.0,47014.0,0.189]
[1641156594599,1.32919676,47018.0,47014.0,0.188]
[1641156594798,0.18,47017.0,47014.0,0.188]
[1641156595199,0.29269329,47017.0,47014.0,0.188]
[1641156595403,0.11269329,47017.0,47014.0,0.188]
[1641156595999,0.11269329,47017.0,47013.0,0.14033567]
[1641156596400,1.32919676,47018.0,47013.0,0.14033567]
[1641156596600,1.32919676,47019.0,47013.0,0.69473007]
[1641156597503,0.11268749,47018.0,47013.0,0.69473007]
[1641156598009,0.11268749,47018.0,47013.0,0.49773007]
[1641156598605,0.11268749,47018.0,47013.0,0.69373007]
[1641156600006,0.11268749,47018.0,47013.0,0.49773007]
[1641156600710,0.11268749,47018.0,47013.0,0.68673007]
[1641156602012,0.11268749,47018.0,47013.0,0.49773007]
[1641156602511,0.11268749,47018.0,47014.0,0.3573944]
[1641156603113,0.11268749,47019.0,47014.0,0.3573944]
[1641156603308,1.32919676,47020.0,47014.0,0.3573944]
[1641156603509,0.11920637,47018.0,47014.0,0.3573944]
[1641156603711,0.11920637,47019.0,47014.0,0.3573944]
[1641156603908,1.32919676,47020.0,47014.0,0.3573944]
[1641156604108,1.32919676,47019.0,47014.0,0.3573944]
[1641156604308,0.119208,47018.0,47014.0,0.3573944]
[1641156604711,0.119208,47018.0,47014.0,0.5443944]
[1641156604911,0.119208,47018.0,47014.0,0.187]
[1641156606212,0.119208,47018.0,47013.0,0.49773007]
[1641156606612,0.18,47014.0,47013.0,0.3573944]
[1641156606810,0.18,47014.0,47013.0,0.5383944]
[1641156607012,0.32033567,47014.0,47013.0,0.5383944]
[1641156607212,0.43954367,47014.0,47013.0,0.5383944]
[1641156607414,0.43954367,47014.0,47013.0,0.181]
[1641156608013,0.43954367,47014.0,47012.0,0.3573944]
[1641156608615,0.119208,47013.0,47012.0,0.3573944]
[1641156608813,0.119208,47013.0,47012.0,0.5403944]
[1641156609215,0.119208,47013.0,47012.0,0.183]
[1641156609916,1.26628034,47013.0,47012.0,0.0144]
[1641156610116,1.26628034,47013.0,47006.0,0.3573944]
[1641156610316,0.18,47007.0,47006.0,0.3573944]
[1641156610516,0.07773,47007.0,47006.0,0.3573944]
[1641156611517,0.07773,47007.0,47003.0,0.83392028]
[1641156611518,0.07773,47007.0,47003.0,0.3573944]
[1641156611717,0.18,47006.0,47003.0,0.3573944]
[1641156612120,0.07773,47007.0,47003.0,0.3573944]
[1641156612320,0.18,47006.0,47003.0,0.3573944]
[1641156612519,0.18,47006.0,47002.0,0.49773007]
[1641156613521,1.296,47006.0,47002.0,0.14033567]
[1641156614821,0.02128023,47003.0,47002.0,0.14033567]
[1641156616824,0.21028023,47003.0,47002.0,0.14033567]
[1641156618021,0.02128023,47003.0,47002.0,0.14033567]
[1641156618724,0.20728023,47003.0,47002.0,0.14033567]
[1641156620125,0.02128023,47003.0,47002.0,0.14033567]
[1641156620726,0.20728023,47003.0,47002.0,0.14033567]
[1641156621326,1.32328023,47003.0,47002.0,0.14033567]
[1641156621526,1.38017023,47003.0,47002.0,0.14033567]
[1641156621729,1.98397558,47003.0,47002.0,0.14033567]
[1641156622131,1.79797558,47003.0,47002.0,0.14033567]
[1641156622329,0.68197558,47003.0,47002.0,0.14033567]
[1641156622731,0.87097558,47003.0,47002.0,0.14033567]
[1641156624131,0.68197558,47003.0,47002.0,0.14033567]
[1641156624530,0.62508558,47003.0,47002.0,0.14033567]
[1641156624731,0.81408558,47003.0,47002.0,0.14033567]
[1641156626031,0.62508558,47003.0,47002.0,0.14033567]
[1641156626237,1.74108558,47003.0,47002.0,0.14033567]
[1641156626635,0.62508558,47003.0,47002.0,0.14033567]
[1641156626834,0.81408558,47003.0,47002.0,0.14033567]
[1641156627038,0.81408558,47003.0,46996.0,0.3573944]
[1641156627436,0.81408558,47003.0,46994.0,0.59565734]
[1641156627637,0.21028023,47003.0,47000.0,0.14033567]
[1641156628235,0.02128023,47003.0,47000.0,0.14033567]
[1641156628840,0.20728023,47003.0,47000.0,0.14033567]
[1641156630048,0.02128023,47003.0,47000.0,0.14033567]
[1641156630749,0.20728023,47003.0,47000.0,0.14033567]
[1641156631153,1.116,47002.0,47000.0,0.14033567]
[1641156631356,1.36807,47002.0,47000.0,0.14033567]
[1641156631553,0.02128181,47001.0,47000.0,0.14033567]
[1641156632854,0.21228181,47001.0,46995.0,0.14033567]
[1641156634256,0.02128181,47001.0,46995.0,0.14033567]
[1641156634757,0.20928181,47001.0,46995.0,0.14033567]
[1641156636760,0.21028181,47001.0,46995.0,0.14033567]
[1641156638062,0.02128181,47001.0,46995.0,0.14033567]
[1641156638860,0.21028181,47001.0,46995.0,0.14033567]
[1641156640762,0.40028181,47001.0,46995.0,0.14033567]
[1641156642167,0.02128181,47001.0,46995.0,0.14033567]
[1641156642766,0.21128181,47001.0,46995.0,0.14033567]
[1641156642967,0.21128181,47001.0,46991.0,0.3573944]
[1641156643170,0.21128181,47001.0,46991.0,0.5373944]
[1641156643465,0.21128181,47001.0,46992.0,0.01209203]
[1641156643668,0.21128181,47001.0,46992.0,0.2307077]
[1641156644266,0.02128181,47001.0,46993.0,0.01209203]
[1641156644470,0.02128181,47001.0,46993.0,0.36948643]
[1641156644868,0.21028181,47001.0,46993.0,0.36948643]
[1641156645269,0.21028181,47001.0,46993.0,0.3573944]
[1641156645768,0.21028181,47001.0,46992.0,0.21861567]
[1641156645968,0.21028181,47001.0,46999.0,0.59565734]
[1641156646168,0.02128181,47001.0,46999.0,0.59565734]
[1641156646768,0.21128181,47001.0,46999.0,0.59565734]
[1641156647568,0.0001,47000.0,46999.0,0.59565734]
[1641156648770,0.1901,47000.0,46999.0,0.59565734]
[1641156650270,0.0001,47000.0,46999.0,0.59565734]
[1641156650871,0.1921,47000.0,46999.0,0.59565734]
[1641156651676,0.1921,47000.0,46998.0,0.83392028]
[1641156652173,0.0001,47000.0,46998.0,0.83392028]
[1641156652573,0.0001,47000.0,46999.0,0.59611441]
[1641156652772,0.1911,47000.0,46999.0,0.59611441]
[1641156654282,0.0001,47000.0,46999.0,0.59611441]
[1641156654877,0.1921,47000.0,46999.0,0.59611441]
[1641156656179,0.0001,47000.0,46999.0,0.59611441]
[1641156656784,0.1911,47000.0,46999.0,0.59611441]
[1641156656980,0.1911,47000.0,46999.0,0.66010441]
[1641156657881,0.1911,47000.0,46999.0,0.06399]
[1641156658183,0.0001,47000.0,46999.0,0.06399]
[1641156658883,0.1921,47000.0,46999.0,0.06399]
[1641156660284,0.1921,47000.0,46999.0,0.20432567]
[1641156660483,0.0001,47000.0,46999.0,0.20432567]
[1641156660884,0.1791,47000.0,46999.0,0.20432567]
[1641156662285,0.0001,47000.0,46999.0,0.20432567]
[1641156662900,0.1801,47000.0,46999.0,0.20432567]
[1641156663900,0.1801,47000.0,46999.0,1.39564035]
[1641156664300,0.0001,47000.0,46999.0,1.39564035]
[1641156664707,0.0001,47000.0,46999.0,0.20432567]
[1641156665003,0.1801,47000.0,46999.0,0.20432567]
[1641156666106,0.1801,47000.0,46999.0,1.39564035]
[1641156666304,0.0001,47000.0,46999.0,1.39564035]
[1641156667004,0.1781,47000.0,46999.0,1.39564035]
[1641156668205,0.0001,47000.0,46999.0,1.39564035]
[1641156668906,0.1811,47000.0,46999.0,1.39564035]
[1641156670206,0.0001,47000.0,46999.0,1.39564035]
[1641156670908,0.1761,47000.0,46999.0,1.39564035]
[1641156671608,0.1761,47000.0,46999.0,1.25530468]
[1641156672907,0.1761,47000.0,46999.0,1.39564035]
[1641156673410,1.02229232,47000.0,46999.0,1.03774276]
[1641156674409,0.84629232,47000.0,46999.0,1.03774276]
[1641156674710,0.93698784,47000.0,46999.0,1.03774276]
[1641156674914,1.11298784,47000.0,46999.0,1.03774276]
[1641156676313,0.93698784,47000.0,46999.0,1.03774276]
[1641156676914,1.11098784,47000.0,46999.0,1.03774276]
[1641156678218,0.93698784,47000.0,46999.0,1.03774276]
[1641156678917,1.11298784,47000.0,46999.0,0.20432567]
[1641156679118,1.02229232,47000.0,46999.0,0.20432567]
[1641156679318,0.1761,47000.0,46999.0,0.20432567]
[1641156680322,0.0001,47000.0,46999.0,0.20432567]
[1641156680517,0.6045136,47000.0,46999.0,0.20432567]
[1641156680917,0.7795136,47000.0,46999.0,0.20432567]
[1641156681922,0.7795136,47000.0,46999.0,0.14033567]
[1641156682120,0.8468936,47000.0,46999.0,0.14033567]
[1641156682320,0.6718936,47000.0,46999.0,0.14033567]
[1641156682524,0.06748,47000.0,46999.0,0.14033567]
[1641156682721,1.00436759,47000.0,46999.0,0.14033567]
[1641156682923,1.18036759,47000.0,46999.0,0.14033567]
[1641156683920,1.18036759,47000.0,46999.0,0.9716289]
[1641156684319,1.00436759,47000.0,46999.0,0.9716289]
[1641156684920,1.18236759,47000.0,46999.0,0.9716289]
[1641156686221,1.00436759,47000.0,46999.0,0.9716289]
[1641156686921,1.18736759,47000.0,46999.0,0.9716289]
[1641156688323,1.00436759,47000.0,46999.0,0.9716289]
[1641156688923,1.18336759,47000.0,46999.0,0.9716289]
[1641156689425,0.33717527,47000.0,46999.0,0.14033567]
[1641156690427,0.15817527,47000.0,46999.0,0.14033567]
[1641156690923,0.33717527,47000.0,46999.0,0.14033567]
[1641156692326,0.15817527,47000.0,46999.0,0.14033567]
[1641156692527,0.09079527,47000.0,46999.0,0.14033567]
[1641156693028,0.26979527,47000.0,46999.0,0.14033567]
[1641156694225,0.1791,47000.0,46999.0,0.14033567]
[1641156694424,0.0001,47000.0,46999.0,0.14033567]
[1641156694825,0.09079527,47000.0,46999.0,0.14033567]
[1641156695026,0.26979527,47000.0,46999.0,0.14033567]
[1641156695633,0.1791,47000.0,46999.0,0.14033567]
[1641156696229,0.26979527,47000.0,46999.0,0.14033567]
[1641156696429,0.09079527,47000.0,46999.0,0.14033567]
[1641156697130,0.26979527,47000.0,46999.0,0.14033567]
[1641156698033,0.26979527,47000.0,46999.0,0.97173557]
[1641156698735,0.09079527,47000.0,46999.0,0.97173557]
[1641156699032,0.28379527,47000.0,46999.0,0.97173557]
[1641156700434,0.09079527,47000.0,46999.0,0.97173557]
[1641156701134,0.28379527,47000.0,46999.0,0.97173557]
[1641156702336,0.0001,47000.0,46999.0,0.97173557]
[1641156702938,0.0001,47000.0,46999.0,0.14033567]
[1641156703138,0.1921,47000.0,46999.0,0.14033567]
[1641156704538,0.09079527,47000.0,46999.0,0.14033567]
[1641156705041,0.28079527,47000.0,46999.0,0.14033567]
[1641156705539,0.1901,47000.0,46999.0,0.14033567]
[1641156706141,0.28079527,47000.0,46999.0,0.97173557]
[1641156706339,0.09079527,47000.0,46999.0,0.97173557]
[1641156707042,0.28079527,47000.0,46999.0,0.97173557]
[1641156708447,0.09079527,47000.0,46999.0,0.97173557]
[1641156709044,0.28079527,47000.0,46999.0,0.97173557]
[1641156709948,0.1901,47000.0,46999.0,0.97173557]
[1641156710449,0.0001,47000.0,46999.0,0.97173557]
[1641156710849,0.0001,47000.0,46999.0,0.14033567]
[1641156711054,0.1911,47000.0,46999.0,0.14033567]
[1641156711552,0.1911,47000.0,46999.0,0.21591567]
[1641156712566,0.0001,47000.0,46999.0,0.21591567]
[1641156713268,0.1911,47000.0,46999.0,0.21591567]
[1641156714966,0.0001,47000.0,46999.0,0.21591567]
[1641156715167,0.1911,47000.0,46999.0,0.21591567]
[1641156716468,0.0001,47000.0,46999.0,0.21591567]
[1641156717169,0.1911,47000.0,46999.0,0.21591567]
[1641156718472,0.0001,47000.0,46999.0,1.04753587]
[1641156718976,0.0001,47000.0,46999.0,0.21591567]
[1641156719171,0.1921,47000.0,46999.0,0.21591567]
[1641156720574,0.0001,47000.0,46999.0,0.21591567]
[1641156721174,0.1911,47000.0,46999.0,0.21591567]
[1641156721376,0.1911,47000.0,46999.0,1.0493252]
[1641156722476,0.0001,47000.0,46999.0,1.0493252]
[1641156723176,0.1901,47000.0,46999.0,1.0493252]
[1641156723375,0.1901,47000.0,46999.0,0.21591567]
[1641156724577,0.0001,47000.0,46999.0,0.21591567]
[1641156724777,0.0001,47000.0,46999.0,0.14033567]
[1641156724977,0.0001,47000.0,46999.0,0.97362135]
[1641156725177,0.1911,47000.0,46999.0,0.97362135]
[1641156726479,0.0001,47000.0,46999.0,0.97362135]
[1641156726880,0.0001,47000.0,46999.0,0.14033567]
[1641156727082,0.1901,47000.0,46999.0,0.14033567]
[1641156728583,0.0001,47000.0,46999.0,0.14033567]
[1641156729189,0.1911,47000.0,46999.0,0.14033567]
[1641156730387,0.31201545,47000.0,46999.0,0.14033567]
[1641156730786,0.1911,47000.0,46999.0,0.14033567]
[1641156731087,0.3811,47000.0,46999.0,0.14033567]
[1641156732889,0.50201351,47000.0,46999.0,0.14033567]
[1641156733087,0.31201351,47000.0,46999.0,0.14033567]
[1641156733690,0.31201351,47000.0,46998.0,1.19131468]
[1641156734089,0.1911,47000.0,46998.0,1.19131468]
[1641156734289,0.1911,47000.0,46999.0,0.14033567]
[1641156734892,0.31201399,47000.0,46999.0,0.14033567]
[1641156735194,0.31601399,47000.0,46999.0,0.14033567]
[1641156736491,0.12101399,47000.0,46999.0,0.14033567]
[1641156736891,0.0001,47000.0,46999.0,0.14033567]
[1641156737195,0.1951,47000.0,46999.0,0.14033567]
[1641156738292,0.1951,47000.0,46999.0,1.33165035]
[1641156738492,0.0001,47000.0,46999.0,1.33165035]
[1641156738892,0.0001,47000.0,46999.0,1.19131468]
[1641156739292,0.1861,47000.0,46999.0,1.19131468]
[1641156740392,0.1861,47000.0,46999.0,1.33165035]
[1641156740592,0.0001,47000.0,46999.0,1.33165035]
[1641156741192,0.1831,47000.0,46999.0,1.33165035]
[1641156742497,0.0001,47000.0,46999.0,1.33165035]
[1641156743298,0.1821,47000.0,46999.0,1.33165035]
[1641156744597,0.0001,47000.0,46999.0,1.33165035]
[1641156745298,0.1841,47000.0,46999.0,1.33165035]
[1641156746500,0.0001,47000.0,46999.0,1.33165035]
[1641156747200,0.1941,47000.0,46999.0,1.33165035]
[1641156748503,0.0001,47000.0,46999.0,1.33165035]
[1641156748903,0.0001,47000.0,46999.0,1.19131468]
[1641156749303,0.1931,47000.0,46999.0,1.19131468]
[1641156749505,0.1931,47000.0,46999.0,1.33165035]
[1641156751206,0.3821,47000.0,46999.0,1.19131468]
[1641156751708,0.3821,47000.0,46999.0,1.33165035]
[1641156752509,0.0001,47000.0,46999.0,1.33165035]
[1641156753219,0.1811,47000.0,46999.0,1.33165035]
[1641156755225,0.1821,47000.0,46999.0,1.33165035]
[1641156755921,0.1821,47000.0,46999.0,0.14033567]
[1641156756521,0.0001,47000.0,46999.0,0.14033567]
[1641156757221,0.1941,47000.0,46999.0,0.14033567]
[1641156758521,0.0001,47000.0,46999.0,0.14033567]
[1641156758722,0.0001,47000.0,46999.0,0.97091297]
[1641156759323,0.1831,47000.0,46999.0,0.97091297]
[1641156761325,0.3781,47000.0,46999.0,0.97091297]
[1641156761927,0.3781,47000.0,46999.0,0.14033567]
[1641156762528,0.0001,47000.0,46999.0,0.14033567]
[1641156763328,0.1831,47000.0,46999.0,0.14033567]
[1641156764531,0.0001,47000.0,46999.0,0.14033567]
[1641156764733,0.0001,47000.0,46999.0,0.21222567]
[1641156765332,0.1851,47000.0,46999.0,1.40354035]
[1641156766534,0.0001,47000.0,46999.0,1.40354035]
[1641156767435,0.1831,47000.0,46999.0,1.40354035]
[1641156767635,1.32914446,47005.0,46999.0,1.58354035]
[1641156767836,0.19744446,47005.0,47004.0,0.32033567]
[1641156768242,1.29441759,47009.0,47006.0,0.42547496]
[1641156768438,1.29441759,47009.0,47008.0,0.20226961]
[1641156768639,0.0001,47010.0,47008.0,0.20226961]
[1641156768838,0.0001,47030.0,47011.0,0.42533176]
[1641156768839,1.57146428,47017.0,47011.0,0.42533176]
[1641156769039,1.57146428,47017.0,47016.0,0.18]
[1641156769237,1.57146428,47017.0,47016.0,0.20126438]
[1641156769439,1.57146428,47017.0,47016.0,0.52081938]
[1641156769841,1.57146428,47017.0,47016.0,0.81357714]
[1641156770243,1.48256428,47017.0,47016.0,0.81357714]
[1641156770442,0.0001,47030.0,47016.0,0.81357714]
[1641156770443,0.0001,47020.0,47016.0,0.81357714]
[1641156770645,0.0001,47020.0,47019.0,0.181]
[1641156771042,0.0001,47020.0,47019.0,0.501969]
[1641156771246,0.0001,47020.0,47019.0,0.695969]
[1641156771644,0.0001,47020.0,47019.0,1.87830746]
[1641156771844,0.0001,47020.0,47019.0,2.03072933]
[1641156772047,0.0001,47020.0,47019.0,2.01864313]
[1641156772246,0.0001,47020.0,47019.0,2.03072941]
[1641156772643,0.0001,47020.0,47019.0,1.83672941]
[1641156773244,0.0001,47020.0,47019.0,5.03510648]
[1641156774046,0.0001,47020.0,47019.0,5.0230202]
[1641156774649,0.0001,47020.0,47019.0,4.8290202]
[1641156774946,0.0001,47020.0,47019.0,4.84110625]
[1641156775347,0.0001,47020.0,47019.0,5.03510625]
[1641156776150,0.0001,47020.0,47019.0,4.8420202]
[1641156776351,0.09383,47020.0,47019.0,1.51667413]
[1641156776750,0.09383,47020.0,47019.0,1.32267413]
[1641156777353,0.09383,47020.0,47019.0,0.91974747]
[1641156778353,1.42324694,47020.0,47019.0,0.32833567]
[1641156778555,1.42324694,47020.0,47019.0,0.14033567]
[1641156779354,1.42324694,47020.0,47019.0,0.32933567]
[1641156780355,0.09383,47020.0,47019.0,0.32933567]
[1641156780554,0.09383,47020.0,47019.0,0.14033567]
[1641156781354,0.09383,47020.0,47019.0,0.32633567]
[1641156781355,0.25783,47020.0,47019.0,0.32633567]
[1641156782655,0.09383,47020.0,47019.0,0.14033567]
[1641156783357,0.09383,47020.0,47019.0,0.33033567]
[1641156784660,0.09383,47020.0,47019.0,0.14033567]
[1641156785260,0.09383,47020.0,47019.0,0.33033567]
[1641156786561,0.09383,47020.0,47019.0,0.14033567]
[1641156787362,0.09383,47020.0,47019.0,0.33133567]
[1641156788566,0.09383,47020.0,47019.0,0.14033567]
[1641156789372,0.09383,47020.0,47019.0,0.33033567]
[1641156790675,0.09383,47020.0,47019.0,0.14033567]
[1641156791375,0.09383,47020.0,47019.0,0.33133567]
[1641156792675,0.09383,47020.0,47019.0,0.14033567]
[1641156792877,0.0001,47020.0,47019.0,0.14033567]
[1641156793277,0.0001,47020.0,47019.0,0.33433567]
[1641156794681,0.0001,47020.0,47019.0,0.14033567]
[1641156795382,0.0001,47020.0,47019.0,0.33333567]
[1641156796687,0.0001,47020.0,47019.0,0.14033567]
[1641156797283,0.0001,47020.0,47019.0,0.33733567]
[1641156798684,0.0001,47020.0,47019.0,0.14033567]
[1641156799287,0.0001,47020.0,47019.0,0.33733567]
[1641156800684,0.0001,47020.0,47019.0,0.14033567]
[1641156801385,0.0001,47020.0,47019.0,0.33533567]
[1641156802690,0.0001,47020.0,47019.0,0.14033567]
[1641156802888,0.0001,47020.0,47019.0,0.4950944]
[1641156803289,0.0001,47020.0,47019.0,0.6920944]
[1641156804101,0.0001,47020.0,47019.0,0.33733567]
[1641156804696,0.0001,47020.0,47019.0,0.14033567]
[1641156805295,0.0001,47020.0,47019.0,0.33633567]
[1641156806097,0.0001,47020.0,47019.0,0.69109351]
[1641156806697,0.0001,47020.0,47019.0,0.49509351]
[1641156807098,0.0001,47020.0,47019.0,0.14033567]
[1641156807297,0.0001,47020.0,47019.0,0.33533567]
[1641156808700,0.0001,47020.0,47019.0,0.14033567]
[1641156809101,0.0001,47020.0,47019.0,0.49516232]
[1641156809301,0.0001,47020.0,47019.0,0.68916232]
[1641156809507,0.0001,47020.0,47019.0,0.54882665]
[1641156810702,0.0001,47020.0,47019.0,0.35482665]
[1641156811303,0.0001,47020.0,47019.0,0.54882665]
[1641156812705,0.0001,47020.0,47019.0,0.35482665]
[1641156813306,0.0001,47020.0,47019.0,0.54882665]
[1641156814811,0.0001,47020.0,47019.0,0.35482665]
[1641156815408,0.0001,47020.0,47019.0,0.54882665]
[1641156816907,0.0001,47020.0,47019.0,0.35482665]
[1641156817311,0.0001,47020.0,47019.0,0.54982665]
[1641156817609,0.0001,47020.0,47019.0,0.195]
[1641156819309,0.0001,47020.0,47019.0,0.198]
[1641156819509,0.0001,47020.0,47019.0,0.7894118]
[1641156820510,0.0001,47020.0,47019.0,0.92974747]
[1641156820709,0.0001,47020.0,47019.0,0.73174747]
[1641156821313,0.0001,47020.0,47019.0,0.92974747]
[1641156821512,0.0001,47020.0,47019.0,0.33833567]
[1641156822914,0.0001,47020.0,47019.0,0.14033567]
[1641156823312,0.0001,47020.0,47019.0,0.33833567]
[1641156824714,0.0001,47020.0,47019.0,0.14033567]
[1641156825413,0.0001,47020.0,47019.0,0.33833567]
[1641156826815,0.0001,47020.0,47019.0,0.14033567]
[1641156827418,0.0001,47020.0,47019.0,0.33833567]
[1641156828820,0.0001,47020.0,47019.0,0.14033567]
[1641156829021,0.08739,47020.0,47019.0,0.96778847]
[1641156829425,0.08739,47020.0,47019.0,1.16178847]
[1641156830526,0.08739,47020.0,47019.0,0.92541477]
[1641156830725,0.08739,47020.0,47019.0,0.73141477]
[1641156831329,0.08739,47020.0,47019.0,0.92541477]
[1641156832529,0.08739,47020.0,47019.0,0.33433567]
[1641156832729,0.08739,47020.0,47019.0,0.14033567]
[1641156833329,0.08739,47020.0,47019.0,0.33233567]
[1641156834839,0.08739,47020.0,47019.0,0.14033567]
[1641156835332,0.08739,47020.0,47019.0,0.33333567]
[1641156837239,0.08739,47020.0,47019.0,0.14033567]
[1641156837439,0.08739,47020.0,47019.0,0.33433567]
[1641156838940,0.08739,47020.0,47019.0,0.14033567]
[1641156839439,0.08739,47020.0,47019.0,0.33633567]
[1641156840340,0.08739,47020.0,47019.0,0.92741477]
[1641156840746,0.08739,47020.0,47019.0,0.73141477]
[1641156841341,0.08739,47020.0,47019.0,0.92741477]
[1641156842741,0.08739,47020.0,47019.0,0.73141477]
[1641156843444,0.08739,47020.0,47019.0,0.92741477]
[1641156844644,0.08739,47020.0,47019.0,0.73141477]
[1641156845346,0.08739,47020.0,47019.0,0.92741477]
[1641156846945,0.08739,47020.0,47019.0,0.73141477]
[1641156847347,0.08739,47020.0,47019.0,0.92641477]
[1641156848651,0.08739,47020.0,47019.0,0.73141477]
[1641156849447,0.08739,47020.0,47019.0,0.92741477]
[1641156850652,0.08739,47020.0,47019.0,0.73141477]
[1641156851353,0.08739,47020.0,47019.0,0.92841477]
[1641156853454,0.08739,47020.0,47019.0,0.92641477]
[1641156854254,0.08739,47020.0,47019.0,0.33533567]
[1641156854658,0.08739,47020.0,47019.0,0.96778847]
[1641156855355,0.08739,47020.0,47019.0,1.16178847]
[1641156856258,0.08739,47020.0,47019.0,0.33433567]
[1641156856661,0.08739,47020.0,47019.0,0.14033567]
[1641156857359,0.08739,47020.0,47019.0,0.33533567]
[1641156858260,0.08739,47020.0,47019.0,1.16292974]
[1641156858762,0.08739,47020.0,47019.0,0.96792974]
[1641156859367,0.08739,47020.0,47019.0,1.16392974]
[1641156860764,0.08739,47020.0,47019.0,0.96792974]
[1641156861466,0.08739,47020.0,47019.0,1.16292974]
[1641156862665,0.08739,47020.0,47019.0,0.96792974]
[1641156863368,0.08739,47020.0,47019.0,1.16392974]
[1641156864668,0.08739,47020.0,47019.0,0.96792974]
[1641156865470,0.08739,47020.0,47019.0,1.16392974]
[1641156866771,0.08739,47020.0,47019.0,0.96792974]
[1641156867374,0.08739,47020.0,47019.0,1.16292974]
[1641156868671,0.08739,47020.0,47019.0,0.96792974]
[1641156869473,0.08739,47020.0,47019.0,1.16292974]
[1641156870678,0.08739,47020.0,47019.0,0.96792974]
[1641156871179,0.08739,47020.0,47019.0,0.82759407]
[1641156871380,0.08739,47020.0,47019.0,1.02359407]
[1641156872079,0.0001,47020.0,47019.0,1.02359407]
[1641156872685,0.0001,47020.0,47018.0,0.14033567]
[1641156872980,0.0001,47020.0,47018.0,1.32267413]
[1641156873381,0.0001,47020.0,47018.0,1.52067413]
[1641156873582,0.84608314,47019.0,47018.0,0.33833567]
[1641156874482,0.0001,47020.0,47018.0,0.33833567]
[1641156874682,0.0001,47020.0,47018.0,0.14033567]
[1641156875483,0.0001,47020.0,47018.0,0.33833567]
[1641156876687,0.0001,47020.0,47018.0,0.14033567]
[1641156877489,0.0001,47020.0,47019.0,0.317306]
[1641156879191,0.0001,47020.0,47019.0,0.318306]
[1641156879392,0.0001,47020.0,47019.0,0.517306]
[1641156880592,0.0001,47020.0,47019.0,0.318306]
[1641156881494,0.0001,47020.0,47019.0,0.514306]
[1641156881892,0.0001,47020.0,47019.0,0.513306]
[1641156882494,0.0001,47020.0,47019.0,0.196]
[1641156882897,0.0001,47020.0,47019.0,0.197]
[1641156883295,0.0001,47020.0,47019.0,0.001]
[1641156883494,0.0001,47020.0,47019.0,0.199]
[1641156883796,0.0001,47020.0,47019.0,0.21108551]
[1641156884600,0.0001,47020.0,47019.0,0.53177951]
[1641156884802,1.32941694,47027.0,47022.0,0.42522863]
[1641156885001,0.0001,47030.0,47024.0,0.18]
[1641156885002,1.32951694,47030.0,47024.0,0.18]
[1641156885202,1.32951694,47030.0,47023.0,0.313276]
[1641156885802,0.0001,47030.0,47028.0,0.35433703]
[1641156886002,0.0001,47030.0,47029.0,0.14033567]
[1641156887407,0.0001,47030.0,47029.0,0.33833567]
[1641156887608,0.0001,47030.0,47029.0,0.6926727]
[1641156888708,0.0001,47030.0,47029.0,0.4946727]
[1641156889408,0.0001,47030.0,47029.0,0.6886727]
[1641156890508,0.0001,47030.0,47029.0,0.33433567]
[1641156890712,0.0001,47030.0,47029.0,0.73089738]
[1641156891311,0.0001,47030.0,47029.0,0.92589738]
[1641156892510,0.0001,47030.0,47029.0,1.16212207]
[1641156892709,0.0001,47030.0,47029.0,0.96712207]
[1641156893610,0.0001,47030.0,47029.0,1.16312207]
[1641156894011,0.84575274,47030.0,47029.0,0.51633567]
[1641156894710,0.84575274,47030.0,47029.0,0.32033567]
[1641156895111,0.84575274,47030.0,47029.0,0.14033567]
[1641156895311,0.84575274,47030.0,47029.0,0.96712207]
[1641156895509,0.84575274,47030.0,47029.0,1.16312207]
[1641156896811,0.84575274,47030.0,47029.0,0.96712207]
[1641156897411,0.84575274,47030.0,47029.0,1.16312207]
[1641156897611,0.84575274,47030.0,47029.0,1.48013562]
[1641156897612,0.0001,47030.0,47029.0,1.48013562]
[1641156897911,0.0001,47030.0,47029.0,1.54615562]
[1641156898111,0.0001,47030.0,47029.0,1.86716562]
[1641156898515,0.0001,47030.0,47029.0,1.04037922]
[1641156898712,0.0001,47030.0,47029.0,0.84437922]
[1641156898912,0.0001,47030.0,47029.0,1.02437922]
[1641156899312,0.0001,47030.0,47029.0,1.0364621]
[1641156899513,0.0001,47030.0,47029.0,1.2334621]
[1641156900614,0.0001,47030.0,47029.0,1.04137922]
[1641156900813,0.0001,47030.0,47029.0,0.84437922]
[1641156901017,0.0001,47030.0,47029.0,0.77835922]
[1641156901513,0.0001,47030.0,47029.0,0.97735922]
[1641156902114,0.0001,47030.0,47029.0,0.65634922]
[1641156902516,0.0001,47030.0,47029.0,1.83723985]
[1641156902714,0.0001,47030.0,47029.0,1.63823985]
[1641156903318,0.0001,47030.0,47029.0,1.3212263]
[1641156903522,0.0001,47030.0,47029.0,0.33433567]
[1641156904720,0.0001,47030.0,47029.0,0.14033567]
[1641156905423,0.0001,47030.0,47029.0,0.31333567]
[1641156906820,0.0011,47030.0,47029.0,0.14033567]
[1641156907022,0.0011,47030.0,47025.0,0.35516179]
[1641156907221,0.18,47026.0,47025.0,0.35516179]
[1641156908322,0.18,47026.0,47024.0,0.59193632]
[1641156908323,0.32033567,47026.0,47024.0,0.35516179]
[1641156908721,1.43633567,47026.0,47024.0,0.35516179]
[1641156909122,2.7656095,47026.0,47023.0,0.35516179]
[1641156909321,0.18,47024.0,47023.0,0.35516179]
[1641156909521,0.24469,47024.0,47023.0,0.35516179]
[1641156911426,0.42069,47024.0,47023.0,0.18]
[1641156912826,0.24469,47024.0,47022.0,0.35516179]
[1641156913231,0.18,47023.0,47022.0,0.35516179]
[1641156913428,0.18,47023.0,47022.0,0.53716179]
[1641156914629,0.24269,47024.0,47022.0,0.53716179]